Cogmind - Beta 10.2 @@@ ROGUE MODE // 2021.08.13 @ 06:14:16 Player: thingamajigger Result: Self-destructed Performance ------------- Evolutions (6) 3000 Regions Visited (17) 3400 Robots Destroyed (215) 1075 Value Destroyed (8279) 8279 Prototype IDs (23) 460 Alien Tech Used (0) 0 Bonus (4210) 4210 TOTAL SCORE: 20424 Bonus ------- High Alert Combat Kills 622 Follower Combat Kills 106 Entered Garrisons 1000 Used RIF Installer 2500 Friendly Fire -18 Cogmind --------- Core Integrity 893/1150 Matter 221/500 Energy 100/100 System Corruption 20% Temperature Cool (0) Movement Core (2100) Ox41 Location -4/Factory Parts ------- > --- POWER (2) -------- (None) > --- PROPULSION (5) --- (None) > --- UTILITY (8) ------ High-capacity Storage Unit High-capacity Storage Unit High-capacity Storage Unit High-capacity Matter Pod Experimental Signal Interpreter Improved Medium Armor Plating > --- WEAPON (4) ------- High-powered Shock Rifle Gauss Rifle KE Penetrator KE Penetrator > --- INVENTORY (28) --- High-capacity Storage Unit High-capacity Storage Unit High-capacity Storage Unit Energy Well (500) Improved Signal Interpreter Experimental Signal Interpreter Improved Melee Analysis Suite Relay Coupler [Duelist] (51) Relay Coupler [Sentry] (35) Relay Coupler [Hunter] (33) Shock Rifle High-powered Shock Rifle High-powered Shock Rifle Tesla Rifle Grenade Launcher Mini Grenade Launcher Improved Remote Datajack Peak State ------------ > --- POWER ------------ Fission Core Micro Fission Core > --- PROPULSION ------- Carbon-fiber Leg Carbon-fiber Leg Carbon-fiber Leg Carbon-fiber Leg Carbon-fiber Leg > --- UTILITY ---------- Advanced Cryofiber Web Advanced Heat Sink High-capacity Storage Unit High-capacity Storage Unit High-capacity Storage Unit Improved Sensor Array Experimental Signal Interpreter Relay Coupler [NC] > --- WEAPON ----------- Heavy Laser Heavy Laser KE Penetrator Improved Remote Datajack > --- INVENTORY -------- Micro Fission Core Carbon-fiber Leg High-capacity Storage Unit High-capacity Storage Unit High-capacity Storage Unit Energy Well High-capacity Matter Pod Improved Signal Interpreter Improved Melee Analysis Suite Improved Medium Armor Plating Relay Coupler [Duelist] Relay Coupler [Sentry] Relay Coupler [Hunter] Shock Rifle High-powered Shock Rifle Tesla Rifle Improved Arc Projector Plasma Rifle Plasma Rifle Gauss Rifle Gauss Rifle KE Penetrator KE Penetrator Grenade Launcher Mini Grenade Launcher [Rating: 79] Favorites ----------- Power Heavy Ion Engine Engine Heavy Ion Engine Power Core Fission Core Propulsion Light Treads Treads Light Treads Leg Carbon-fiber Leg Utility High-capacity Storage Unit Device Advanced Heat Sink Storage High-capacity Storage Unit Processor Targeting Computer Hackware Relay Coupler [NC] Protection Improved Light Armor Plating Weapon Autogun Energy Gun Spread Laser Ballistic Gun Autogun Launcher Grenade Launcher Special Weapon Improved Remote Datajack Slashing Weapon Ripper Build | -11 -10 -10 -9 -9 -9 -8 -8 -8 -8 -8 -7 -7 -6 -6 -5 -5 -4 ------- Run | Scr Mat Min Mat Min Exi Min Mat Gar Mat Gar Fac Gar Fac Gar Fac Gar Fac Slots Evolved 12 | . . . 2 . . . 2 . . . 2 . 2 . 2 . 2 Power 1 | . . . . . . . . . . . . . . . . . 1 Propulsion 3 | . . . . . . . . . . . 1 . 1 . . . 1 Utility 6 | . . . 2 . . . 1 . . . 1 . . . 2 . . Weapon 2 | . . . . . . . 1 . . . . . 1 . . . . Parts Attached 215 | 6 1 3 14 3 4 . 14 3 17 3 4 7 68 13 4 24 27 Power 15 | 1 . 1 2 . . . 2 . . 1 . . 4 1 . 1 2 Engine 9 | 1 . . 2 . . . 2 . . 1 . . 2 1 . . . Core 6 | . . 1 . . . . . . . . . . 2 . . 1 2 Reactor . | . . . . . . . . . . . . . . . . . . Propulsion 46 | 2 . . 2 1 . . 1 . 6 1 1 3 18 2 . 6 3 Treads 37 | 2 . . 1 1 . . 1 . 6 1 1 3 18 2 . 1 . Leg 9 | . . . 1 . . . . . . . . . . . . 5 3 Wheel . | . . . . . . . . . . . . . . . . . . Hover . | . . . . . . . . . . . . . . . . . . Flight . | . . . . . . . . . . . . . . . . . . Utility 62 | 1 1 1 7 . 4 . 3 2 6 . 3 2 13 7 2 4 6 Device 24 | . . . 3 . . . 1 . 2 . 2 1 8 2 2 2 1 Storage 14 | 1 . 1 3 . 4 . . . 2 . . . 2 . . . 1 Processor 6 | . 1 . . . . . . 1 . . . . . 2 . . 2 Hackware 1 | . . . . . . . . . . . . . . . . . 1 Protection 17 | . . . 1 . . . 2 1 2 . 1 1 3 3 . 2 1 Artifact . | . . . . . . . . . . . . . . . . . . Weapon 92 | 2 . 1 3 2 . . 8 1 5 1 . 2 33 3 2 13 16 Energy Gun 40 | . . . 3 2 . . 4 . 3 1 . 1 10 2 1 6 7 Energy Cannon . | . . . . . . . . . . . . . . . . . . Ballistic Gun 44 | 2 . 1 . . . . 3 1 2 . . 1 18 1 1 6 8 Ballistic Cannon . | . . . . . . . . . . . . . . . . . . Launcher 2 | . . . . . . . . . . . . . 1 . . 1 . Special Weapon 1 | . . . . . . . . . . . . . . . . . 1 Impact Weapon . | . . . . . . . . . . . . . . . . . . Slashing Weapon 5 | . . . . . . . 1 . . . . . 4 . . . . Piercing Weapon . | . . . . . . . . . . . . . . . . . . Special Melee Weapon . | . . . . . . . . . . . . . . . . . . Unidentified Prototypes 6 | . . . 1 . . . 1 . 1 . . 1 2 . . . . Parts Lost 93 | . . 2 3 3 . . 9 2 4 2 . 3 18 9 . 17 21 Power 7 | . . 1 1 . . . 1 . . 1 . . . . . 1 2 Propulsion 26 | . . . 1 1 . . 1 . . . . 2 7 2 . 5 7 Utility 19 | . . . . . . . 2 1 . . . 1 3 4 . 3 5 Weapon 41 | . . 1 1 2 . . 5 1 4 1 . . 8 3 . 8 7 Highest Loss Streak 13 | . . 1 1 3 . . 4 1 2 1 . 3 6 4 . 13 11 Average Slot Usage (%) 94 | . 97 99 90 99 95 88 83 85 93 99 100 94 98 96 93 94 77 Engine 5 | . 14 1 9 11 11 11 8 9 9 8 7 7 2 2 5 3 . Core 2 | . . 11 . . . . . . . . . . 3 3 . 1 5 Treads 19 | . 28 28 14 21 22 22 14 14 17 17 23 22 25 25 23 13 . Leg 1 | . . . . . . . . . . . . . . . . 7 17 Device 10 | . . . 9 11 11 11 9 9 8 9 15 15 14 9 17 14 9 Storage 20 | . 14 14 24 33 29 22 18 18 21 27 23 23 20 20 17 17 16 Processor 2 | . 11 14 1 . . . . . . . . . . . 5 5 6 Protection 4 | . . . 7 . . . 6 9 8 9 7 2 4 7 5 5 1 Energy Gun 9 | . . . 19 22 22 22 24 4 3 8 7 7 5 8 4 4 5 Ballistic Gun 14 | . 28 27 2 . . . 1 21 23 18 15 15 19 14 10 16 11 Naked Turns . | . . . . . . . . . . . . . . . . . . Heaviest Build 139 | 10 10 23 61 61 125 125 134 139 139 116 117 117 129 129 125 131 133 Greatest Support 120 | 40 40 40 40 40 40 40 40 40 40 40 60 60 120 110 100 100 75 Greatest Overweight (x) 41 | . . . 2 3 3 3 6 6 6 2 1 2 1 1 1 41 41 Average Overweight (x) 1 | . . . 1 1 1 3 4 4 2 2 1 1 1 1 1 1 2 Largest Inventory Capacity 48 | 6 6 10 22 22 32 32 32 32 48 28 28 28 28 28 28 28 28 Average Capacity 24 | 5 6 6 17 22 24 32 32 32 30 28 28 28 28 28 28 28 28 Most Carried 32 | 1 5 6 14 19 25 23 32 31 32 28 28 28 28 28 25 28 28 Average Carried 22 | . 3 5 10 16 19 23 28 29 27 27 26 27 26 26 24 24 22 Final Capacity 32 | 6 6 10 22 22 32 32 32 32 28 28 28 28 28 28 28 28 28 Final Carried 31 | 1 5 6 12 19 23 23 31 29 26 28 27 28 25 26 25 26 17 Class Distribution -------------------- 35% | Hauler-Tank 16% | Hauler-Mutant 15% | Mutant 10% | Scavenger-Tank 9% | Scavenger-Skirmisher 5% | Hauler-Gunner 5% | Scavenger-Gunner Dominant Class ---------------- Mutant | -10/Materials Mutant | -10/Mines Mutant | -9/Materials Hauler-Mutant | -9/Mines Hauler-Mutant | -9/Exiles Hauler-Mutant | -8/Mines Hauler-Tank | -8/Materials Hauler-Tank | -8/Garrison Hauler-Tank | -8/Materials Hauler-Tank | -8/Garrison Hauler-Tank | -7/Factory Hauler-Gunner | -7/Garrison Hauler-Tank | -6/Factory Hauler-Tank | -6/Garrison Scavenger-Skirmisher | -5/Factory Scavenger-Skirmisher | -5/Garrison Scavenger-Skirmisher | -4/Factory Resources | -11 -10 -10 -9 -9 -9 -8 -8 -8 -8 -8 -7 -7 -6 -6 -5 -5 -4 ----------- Run | Scr Mat Min Mat Min Exi Min Mat Gar Mat Gar Fac Gar Fac Gar Fac Gar Fac Matter Collected 6386 | 152 95 358 185 30 . . 217 131 1138 215 59 244 1749 535 . 556 722 Remotely . | . . . . . . . . . . . . . . . . . . Salvage Created 9963 | 72 168 304 433 331 . . 761 543 1376 486 266 297 2296 639 . 761 1230 Parts 525 | 3 7 21 24 32 . . 36 35 68 21 11 16 114 34 . 37 66 Haulers Intercepted 9 | . 1 . 1 . . . 2 . 3 . . . 2 . . . . Recyclers Shooed 4 | . . . . . . . . . . . . . 3 . . . 1 Parts Field Recycled . | . . . . . . . . . . . . . . . . . . Retrieved Matter . | . . . . . . . . . . . . . . . . . . Parts Self-Destructed . | . . . . . . . . . . . . . . . . . . Prevented . | . . . . . . . . . . . . . . . . . . Kills | -11 -10 -10 -9 -9 -9 -8 -8 -8 -8 -8 -7 -7 -6 -6 -5 -5 -4 ------- Run | Scr Mat Min Mat Min Exi Min Mat Gar Mat Gar Fac Gar Fac Gar Fac Gar Fac Combat Hostiles Destroyed 183 | . 2 7 7 17 . . 12 16 20 12 5 10 33 12 . 18 12 Guns 169 | . 2 7 7 17 . . 12 14 20 12 5 10 28 12 . 12 11 AOE 12 | . . . . . . . . 2 . . . . 3 . . 6 1 Classes Destroyed 16 | 1 3 2 3 1 . . 1 1 1 . 1 . 1 1 . . . Worker 5 | . . . . . . . . . 2 . . . 1 . . . 2 Builder 5 | . . . . . . . . . . . 1 . . . . . 4 Tunneler 1 | . . 1 . . . . . . . . . . . . . . . Hauler 9 | . 1 . 1 . . . 2 . 3 . . . 2 . . . . Recycler 8 | 1 . 1 1 1 . . 1 . 1 . . . . . . . 2 Operator 1 | . . . 1 . . . . . . . . . . . . . . Watcher 7 | . 1 . . . . . . . 1 . . . 5 . . . . Swarmer 47 | . . 3 1 10 . . . 8 . 3 . 8 3 3 . 8 . Grunt 74 | . 2 4 3 2 . . 7 5 15 7 5 2 4 4 . 9 5 Brawler 3 | . . . . . . . 2 . . 1 . . . . . . . Duelist 9 | . . . 1 . . . . 1 . . . . 5 . . 1 1 Sentry 23 | . . . 2 1 . . 3 1 3 1 . . 8 . . . 4 Specialist 2 | . . . . . . . . . . . . . . 2 . . . Hunter 13 | . . . . . . . . 1 2 . . . 7 3 . . . Programmer 8 | . . . . . . . . . . . . . 6 . . . 2 Assembled 4 | . . . . 4 . . . . . . . . . . . . . Best Kill Streak 11 | 1 1 3 4 4 . . 4 11 6 3 6 10 6 3 . 5 8 Combat Bots Only 11 | . 1 3 2 4 . . 3 11 5 3 5 10 6 3 . 5 4 Max Kills in Single Turn 3 | 1 1 1 1 1 . . 1 3 2 2 1 2 2 1 . 2 2 Gunslinging 2 | . . . . . . . . 2 1 1 . 1 1 . . . . Exploded 2 | . . . . . . . . 1 . . . . 1 . . 2 1 Melee . | . . . . . . . . . . . . . . . . . . Uniques/NPCs Destroyed . | . . . . . . . . . . . . . . . . . . Combat | -11 -10 -10 -9 -9 -9 -8 -8 -8 -8 -8 -7 -7 -6 -6 -5 -5 -4 -------- Run | Scr Mat Min Mat Min Exi Min Mat Gar Mat Gar Fac Gar Fac Gar Fac Gar Fac Damage Taken 13966 | . 176 265 399 521 . . 698 556 1297 364 182 377 3587 1265 . 2062 2217 Core 1356 | . 42 23 35 79 . . 68 21 23 37 34 125 307 97 . 208 257 Absorbed by Shields 54 | . . . . . . . . . . . . 54 . . . . . Core Remaining (%) 75 | 100 . 74 . . . 71 . . . 72 . 77 . 52 . 79 . Volleys Fired 527 | 1 18 30 22 37 . . 35 24 70 27 18 16 96 40 . 42 51 Largest 4 | 2 2 2 2 2 . . 3 3 3 3 3 3 4 4 . 4 4 Hottest 284 | 40 40 40 112 130 . . 195 98 111 111 111 111 171 180 . 237 284 Shots Fired 1590 | 2 36 58 44 74 . . 99 69 206 74 54 46 359 146 . 150 173 Gun 1581 | 2 36 58 44 74 . . 99 69 206 74 54 46 355 146 . 146 172 Cannon . | . . . . . . . . . . . . . . . . . . Launcher 8 | . . . . . . . . . . . . . 4 . . 4 . Special 1 | . . . . . . . . . . . . . . . . . 1 Kinetic 1015 | 2 36 58 10 . . . 5 56 167 50 36 30 257 94 . 104 110 Thermal 362 | . . . 34 74 . . 76 . 39 24 18 16 4 14 . 21 42 Explosive 8 | . . . . . . . . . . . . . 4 . . 4 . Electromagnetic 204 | . . . . . . . 18 13 . . . . 94 38 . 21 20 Robot Hit Streak 32 | 2 8 12 8 18 . . 13 9 14 21 32 13 19 11 . 20 14 Robot Miss Streak 7 | . 1 5 3 7 . . 4 4 3 2 2 4 3 5 . 3 3 Penetration Max 1 | . . . . . . . . . . . . . 1 . . . 1 Secondary Targets 38 | . 1 3 2 1 . . . 7 5 2 . 5 6 3 . 3 . Max Gunslinging Chain 2 | . 1 1 1 1 . . . 2 1 1 . 2 1 1 . 1 . Shots Hit Robots 1109 | 2 27 40 28 59 . . 77 45 147 59 44 29 251 100 . 103 98 Core Hits 506 | 2 9 20 15 52 . . 44 25 53 21 12 18 111 30 . 46 48 Critical Hits 13 | . . 1 1 . . . . 1 1 . . . 3 1 . 1 4 Critical Kills 8 | . . . 1 . . . . . 1 . . . 3 . . 1 2 Critical Parts Destroyed 5 | . . 1 . . . . . 1 . . . . . 1 . . 2 Melee Attacks 11 | . . . . . . . 4 . . . . . 7 . . . . Impact . | . . . . . . . . . . . . . . . . . . Slashing 11 | . . . . . . . 4 . . . . . 7 . . . . Piercing . | . . . . . . . . . . . . . . . . . . Sneak Attacks . | . . . . . . . . . . . . . . . . . . Combat Hostiles . | . . . . . . . . . . . . . . . . . . Follow-up Attacks . | . . . . . . . . . . . . . . . . . . Damage Inflicted 19768 | 20 244 397 431 597 . . 991 792 2257 1077 694 505 4908 1632 . 2353 2870 Guns 17863 | 20 244 397 431 597 . . 991 681 2248 1077 694 505 4267 1566 . 1612 2533 Cannons . | . . . . . . . . . . . . . . . . . . Explosions 1869 | . . . . . . . . 111 . . . . 614 66 . 741 337 Melee . | . . . . . . . . . . . . . . . . . . Ramming 36 | . . . . . . . . . 9 . . . 27 . . . . Kinetic 10607 | 20 244 397 54 . . . 64 534 1597 680 423 296 2706 900 . 900 1792 Thermal 4591 | . . . 377 597 . . 676 111 651 397 271 209 108 142 . 344 708 Explosive 1404 | . . . . . . . . . . . . . 575 . . 667 162 Electromagnetic 3130 | . . . . . . . 251 147 . . . . 1492 590 . 442 208 Impact . | . . . . . . . . . . . . . . . . . . Slashing . | . . . . . . . . . . . . . . . . . . Piercing . | . . . . . . . . . . . . . . . . . . Highest Corruption 20 | . . . . . . . 9 9 9 9 . 1 4 4 . . 20 Average Corruption 6 | . . . . . . . 8 9 9 9 . 1 2 4 . . 13 Corruption Purged . | . . . . . . . . . . . . . . . . . . Effects 221 | . . . . . . . 40 19 51 36 . 2 22 15 . . 36 Message Errors 42 | . . . . . . . 7 3 10 6 . 1 9 3 . . 3 Matter Fused 44 | . . . . . . . 8 2 11 7 . . 2 4 . . 10 Heat Flow Errors 15 | . . . . . . . 5 2 3 2 . . 1 2 . . . Energy Discharges 19 | . . . . . . . 5 3 3 1 . 1 1 3 . . 2 Parts Rejected 5 | . . . . . . . . 1 . 1 . . . . . . 3 Data Loss (minor) 18 | . . . . . . . 4 2 2 4 . . 2 1 . . 3 Data Loss (major) 2 | . . . . . . . 1 . . 1 . . . . . . . Misfires 3 | . . . . . . . 3 . . . . . . . . . . Misdirections 2 | . . . . . . . . . . . . . . . . . 2 Targeting Errors 57 | . . . . . . . 5 5 18 11 . . 6 1 . . 11 Weapon Failures 14 | . . . . . . . 2 1 4 3 . . 1 1 . . 2 Overload Shots . | . . . . . . . . . . . . . . . . . . Overflow Damage 118 | . . . . . . . . 7 . . . . 32 . . 1 78 Projectiles . | . . . . . . . . . . . . . . . . . . Explosions 113 | . . . . . . . . 7 . . . . 27 . . 1 78 Melee 5 | . . . . . . . . . . . . . 5 . . . . Knockbacks . | . . . . . . . . . . . . . . . . . . Impact . | . . . . . . . . . . . . . . . . . . Kinetic . | . . . . . . . . . . . . . . . . . . Secondary . | . . . . . . . . . . . . . . . . . . Self-Inflicted Damage 552 | . . . . . . . . 68 . . . . 286 . . . 198 Shots 11 | . . . . . . . . 2 . . . . 6 . . . 3 Rammed 2 | . . . . . . . . . 1 . . . 1 . . . . Targets Rammed 2 | . . . . . . . . . 1 . . . 1 . . . . Kicked . | . . . . . . . . . . . . . . . . . . Crushed . | . . . . . . . . . . . . . . . . . . Highest Temperature 391 | . 9 26 105 6 . . 391 257 300 198 . . 116 319 . 206 234 Average Temperature 71 | . 7 6 27 2 . . 109 52 61 43 . . 25 138 . 41 81 Received Heat Transfer 2784 | . 99 111 114 39 . . 297 153 486 135 108 27 297 165 . 480 273 Effects 4 | . . . . . . . 1 . 1 . . . . 2 . . . Shutdowns 1 | . . . . . . . 1 . . . . . . . . . . Energy Bleed 1 | . . . . . . . . . 1 . . . . . . . . Interference 2 | . . . . . . . . . . . . . . 2 . . . Siege Activations . | . . . . . . . . . . . . . . . . . . Robots Corrupted 2 | . . . . . . . . . . . . . 2 . . . . Combat Hostiles 2 | . . . . . . . . . . . . . 2 . . . . Parts Fried 18 | . . . . . . . . . . . . . 13 5 . . . Impact Corruptions 1 | . . . . . . . . . . . . . 1 . . . . Robots Melted . | . . . . . . . . . . . . . . . . . . Combat Hostiles . | . . . . . . . . . . . . . . . . . . Parts Melted 11 | . . . 4 2 . . . . . 1 . 1 . . . 2 1 Heat Transferred 8279 | . . . 814 927 . . 1260 100 1258 814 555 444 198 173 . 531 1205 Parts Sabotaged . | . . . . . . . . . . . . . . . . . . Parts Stolen . | . . . . . . . . . . . . . . . . . . Parts Stripped . | . . . . . . . . . . . . . . . . . . Power Chain Reactions 8 | . . . . . . . . 2 . . . . 2 1 . 1 2 Missiles Intercepted . | . . . . . . . . . . . . . . . . . . Alert | -11 -10 -10 -9 -9 -9 -8 -8 -8 -8 -8 -7 -7 -6 -6 -5 -5 -4 ------- Run | Scr Mat Min Mat Min Exi Min Mat Gar Mat Gar Fac Gar Fac Gar Fac Gar Fac Peak Influence 656 | 5 97 142 276 195 . . 158 452 499 574 428 479 631 656 344 564 413 Initial 441 | . 3 37 . 60 . . . 52 220 319 301 299 251 441 344 240 296 Average 238 | 2 46 43 135 95 . . 58 252 325 431 323 397 241 564 344 411 317 Maximum Alert Level 2 | . . . 1 . . . . 2 2 2 2 2 2 2 1 2 2 Low Security (%) 46 | 100 100 100 80 100 . 100 100 49 . . . . 41 . . . . Level 1 34 | . . . 19 . . . . 16 71 61 90 49 43 . 100 41 93 Level 2 19 | . . . . . . . . 34 28 38 9 50 14 100 . 58 6 Level 3 . | . . . . . . . . . . . . . . . . . . Level 4 . | . . . . . . . . . . . . . . . . . . Level 5 . | . . . . . . . . . . . . . . . . . . High Security . | . . . . . . . . . . . . . . . . . . Max Security . | . . . . . . . . . . . . . . . . . . Squads Dispatched 19 | . . . . . . . . . 4 . 2 . 10 . . . 3 Investigation 4 | . . . . . . . . . 2 . . . 2 . . . . Extermination 5 | . . . . . . . . . . . . . 4 . . . 1 Reinforcement 3 | . . . . . . . . . . . 1 . . . . . 2 Assault 2 | . . . . . . . . . . . . . 2 . . . . Garrison 5 | . . . . . . . . . 2 . 1 . 2 . . . . Intercept . | . . . . . . . . . . . . . . . . . . Construction Impeded 1 | . . . . . . . . . . . . . . . . . 1 Haulers Reinforced 1 | . . . . . . . . . . . 1 . . . . . . Stealth | -11 -10 -10 -9 -9 -9 -8 -8 -8 -8 -8 -7 -7 -6 -6 -5 -5 -4 --------- Run | Scr Mat Min Mat Min Exi Min Mat Gar Mat Gar Fac Gar Fac Gar Fac Gar Fac Distress Signals 11 | . 1 . . . . . 2 . 4 . . . 2 . . . 2 Communications Jammed . | . . . . . . . . . . . . . . . . . . Distress Signals . | . . . . . . . . . . . . . . . . . . Times Spotted 249 | . 4 7 15 20 . . 13 18 28 12 6 11 48 13 . 22 32 Peak Tracking Total 10 | . 2 3 3 10 . . 3 6 6 4 3 5 6 4 . 6 6 Tactical Retreats 13 | . . . 1 2 . . . 1 1 1 . . 3 2 . 2 . Traps | -11 -10 -10 -9 -9 -9 -8 -8 -8 -8 -8 -7 -7 -6 -6 -5 -5 -4 ------- Run | Scr Mat Min Mat Min Exi Min Mat Gar Mat Gar Fac Gar Fac Gar Fac Gar Fac Traps Triggered 17 | . . . 1 . . . . 1 1 2 . 2 2 5 1 2 . Indirectly . | . . . . . . . . . . . . . . . . . . Trap Hack Attempts . | . . . . . . . . . . . . . . . . . . Triggered . | . . . . . . . . . . . . . . . . . . Disarmed . | . . . . . . . . . . . . . . . . . . Reprogrammed . | . . . . . . . . . . . . . . . . . . Reused . | . . . . . . . . . . . . . . . . . . Traps Extracted . | . . . . . . . . . . . . . . . . . . Installed . | . . . . . . . . . . . . . . . . . . Triggered . | . . . . . . . . . . . . . . . . . . Machines | -11 -10 -10 -9 -9 -9 -8 -8 -8 -8 -8 -7 -7 -6 -6 -5 -5 -4 ---------- Run | Scr Mat Min Mat Min Exi Min Mat Gar Mat Gar Fac Gar Fac Gar Fac Gar Fac Machines Disabled 12 | . . . . . . . . . 2 . . . 2 . . 2 6 Max in Single Turn 4 | . . . . . . . . . 1 . . . 1 . . 2 4 Garrison Access 2 | . . . . . . . . . . . . . 1 . . . 1 Phase Generator 1 | . . . . . . . . . . . . . . . . 1 . Machines Sabotaged . | . . . . . . . . . . . . . . . . . . Garrisons Compromised . | . . . . . . . . . . . . . . . . . . Overloaded Fab Kills . | . . . . . . . . . . . . . . . . . . Fab Network Shutdowns . | . . . . . . . . . . . . . . . . . . Hacking | -11 -10 -10 -9 -9 -9 -8 -8 -8 -8 -8 -7 -7 -6 -6 -5 -5 -4 --------- Run | Scr Mat Min Mat Min Exi Min Mat Gar Mat Gar Fac Gar Fac Gar Fac Gar Fac Machines Accessed 19 | . . . 1 . 1 . 7 . 2 . 1 . 5 . 1 . 1 Terminals 12 | . . . 1 . . . 6 . 1 . . . 4 . . . . Fabricators . | . . . . . . . . . . . . . . . . . . Repair Stations . | . . . . . . . . . . . . . . . . . . Recycling Units . | . . . . . . . . . . . . . . . . . . Scanalyzers . | . . . . . . . . . . . . . . . . . . Garrison Access 6 | . . . . . . . 1 . 1 . 1 . 1 . 1 . 1 Total Hacks 52 | . . . 5 . 1 . 21 . 3 . 1 . 18 . 1 . 2 Successful 34 | . . . 2 . 1 . 14 . 1 . 1 . 12 . 1 . 2 Failed 18 | . . . 3 . . . 7 . 2 . . . 6 . . . . Catastrophic 2 | . . . . . . . . . 1 . . . 1 . . . . Database Lockouts . | . . . . . . . . . . . . . . . . . . Manual 26 | . . . 4 . . . 13 . 2 . . . 7 . . . . Terminals 44 | . . . 5 . . . 20 . 2 . . . 17 . . . . Fabricators . | . . . . . . . . . . . . . . . . . . Repair Stations . | . . . . . . . . . . . . . . . . . . Recycling Units . | . . . . . . . . . . . . . . . . . . Scanalyzers . | . . . . . . . . . . . . . . . . . . Garrison Access 7 | . . . . . . . 1 . 1 . 1 . 1 . 1 . 2 Terminal Hacks 18 | . . . 1 . 1 . 8 . . . . . 8 . . . . Record 1 | . . . . . 1 . . . . . . . . . . . . Part Schematic 1 | . . . . . . . . . . . . . 1 . . . . Robot Analysis 3 | . . . . . . . 3 . . . . . . . . . . Prototype ID Bank 7 | . . . 1 . . . 2 . . . . . 4 . . . . Terminal Index 3 | . . . . . . . 1 . . . . . 2 . . . . Alert Level 1 | . . . . . . . . . . . . . 1 . . . . Locate Traps 2 | . . . . . . . 2 . . . . . . . . . . Fabricator Hacks . | . . . . . . . . . . . . . . . . . . Repair Station Hacks . | . . . . . . . . . . . . . . . . . . Recycling Unit Hacks . | . . . . . . . . . . . . . . . . . . Scanalyzer . | . . . . . . . . . . . . . . . . . . Garrison Access Hacks 7 | . . . . . . . 1 . 1 . 1 . 1 . 1 . 2 Unlock Access 5 | . . . . . . . 1 . 1 . 1 . 1 . 1 . . Seal Access 1 | . . . . . . . . . . . . . . . . . 1 Coupler Status 1 | . . . . . . . . . . . . . . . . . 1 Unauthorized Hacks 9 | . . . 1 . . . 5 . . . . . 3 . . . . Terminals 9 | . . . 1 . . . 5 . . . . . 3 . . . . Track 1 | . . . . . . . 1 . . . . . . . . . . Botnet 6 | . . . 1 . . . 3 . . . . . 2 . . . . Operators 2 | . . . . . . . 1 . . . . . 1 . . . . Fabricators . | . . . . . . . . . . . . . . . . . . Repair Stations . | . . . . . . . . . . . . . . . . . . Recycling Units . | . . . . . . . . . . . . . . . . . . Scanalyzers . | . . . . . . . . . . . . . . . . . . Garrison Access . | . . . . . . . . . . . . . . . . . . Data Cores Recovered . | . . . . . . . . . . . . . . . . . . Used . | . . . . . . . . . . . . . . . . . . Hacking Detections 12 | . . . 1 . . . 6 . 1 . . . 4 . . . . Full Trace Events 1 | . . . . . . . . . 1 . . . . . . . . Feedback Events . | . . . . . . . . . . . . . . . . . . Feedback Blocked . | . . . . . . . . . . . . . . . . . . Robot Schematics Acquired . | . . . . . . . . . . . . . . . . . . Robots Built . | . . . . . . . . . . . . . . . . . . Matter . | . . . . . . . . . . . . . . . . . . Time . | . . . . . . . . . . . . . . . . . . Total Robot Build Rating . | . . . . . . . . . . . . . . . . . . Part Schematics Acquired 1 | . . . . . . . . . . . . . 1 . . . . Parts Built . | . . . . . . . . . . . . . . . . . . Matter . | . . . . . . . . . . . . . . . . . . Time . | . . . . . . . . . . . . . . . . . . Total Part Build Rating . | . . . . . . . . . . . . . . . . . . Parts Repaired . | . . . . . . . . . . . . . . . . . . Time . | . . . . . . . . . . . . . . . . . . Parts Recycled . | . . . . . . . . . . . . . . . . . . Recycled Matter . | . . . . . . . . . . . . . . . . . . Retrieved Matter . | . . . . . . . . . . . . . . . . . . Retrieved Components . | . . . . . . . . . . . . . . . . . . Parts Scanalyzed . | . . . . . . . . . . . . . . . . . . Part Schematics Acquired . | . . . . . . . . . . . . . . . . . . Parts Damaged . | . . . . . . . . . . . . . . . . . . Bothacking | -11 -10 -10 -9 -9 -9 -8 -8 -8 -8 -8 -7 -7 -6 -6 -5 -5 -4 ------------ Run | Scr Mat Min Mat Min Exi Min Mat Gar Mat Gar Fac Gar Fac Gar Fac Gar Fac Used RIF Installer 5 | . . . . . . . . 1 . 1 . 1 . 1 . 1 . Coupler Efficiency 1 | . . . . . . . . . . 1 . . . . . . . Threat Obfuscator 1 | . . . . . . . . . . . . . . 1 . . . Patrol Navigation 1 | . . . . . . . . . . . . . . . . 1 . Watcher Feeds 1 | . . . . . . . . . . . . 1 . . . . . Robots Hacked 1 | . . . . . . . . . . . . . . . . . 1 Non-combat 1 | . . . . . . . . . . . . . . . . . 1 Combat . | . . . . . . . . . . . . . . . . . . Robot Hacks Applied 1 | . . . . . . . . . . . . . . . . . 1 drop_inventory 1 | . . . . . . . . . . . . . . . . . 1 Relay Couplers Released 3 | . . . . . . . . . . . . . 1 . . . 2 Machine Destruction 3 | . . . . . . . . . . . . . 1 . . . 2 Attached 1 | . . . . . . . . . . . . . . . . . 1 Robots Rewired . | . . . . . . . . . . . . . . . . . . Allies Hacked . | . . . . . . . . . . . . . . . . . . Hacks Repelled . | . . . . . . . . . . . . . . . . . . Allies | -11 -10 -10 -9 -9 -9 -8 -8 -8 -8 -8 -7 -7 -6 -6 -5 -5 -4 -------- Run | Scr Mat Min Mat Min Exi Min Mat Gar Mat Gar Fac Gar Fac Gar Fac Gar Fac Total Allies 3 | . . 3 . . . . . . . . . . . . . . . Largest Group 3 | . . 3 3 1 . . . . . . . . . . . . . Highest-Rated Group 40 | . . 40 40 16 . . . . . . . . . . . . . Highest-Rated Ally 16 | . . 16 16 16 . . . . . . . . . . . . . Total Orders . | . . . . . . . . . . . . . . . . . . Ally Attacks 54 | . . . 48 6 . . . . . . . . . . . . . Total Damage 449 | . . . 379 70 . . . . . . . . . . . . . Kills 7 | . . . 6 1 . . . . . . . . . . . . . Allies Corrupted . | . . . . . . . . . . . . . . . . . . Allies Melted . | . . . . . . . . . . . . . . . . . . Intel | -11 -10 -10 -9 -9 -9 -8 -8 -8 -8 -8 -7 -7 -6 -6 -5 -5 -4 ------- Run | Scr Mat Min Mat Min Exi Min Mat Gar Mat Gar Fac Gar Fac Gar Fac Gar Fac Robot Analysis Total 3 | . . . . . . . 3 . . . . . . . . . . Derelict Logs Recovered 3 | . . 1 . 2 . . . . . . . . . . . . . Drone Launches . | . . . . . . . . . . . . . . . . . . Drone Recoveries . | . . . . . . . . . . . . . . . . . . Exploration | -11 -10 -10 -9 -9 -9 -8 -8 -8 -8 -8 -7 -7 -6 -6 -5 -5 -4 ------------- Run | Scr Mat Min Mat Min Exi Min Mat Gar Mat Gar Fac Gar Fac Gar Fac Gar Fac Turns Passed 13105 | 70 393 1087 746 1121 388 41 1056 383 871 607 240 291 3141 617 120 1027 906 Spaces Moved 5596 | 38 208 624 330 522 195 18 345 125 265 256 103 124 1456 241 64 381 301 Core 14 | 3 . . . . . . . . . . . . . . . 2 9 Treads 5161 | 35 208 624 330 522 195 18 345 125 265 256 103 124 1456 241 64 250 . Legs 421 | . . . . . . . . . . . . . . . . 129 292 Wheels . | . . . . . . . . . . . . . . . . . . Hover . | . . . . . . . . . . . . . . . . . . Flight . | . . . . . . . . . . . . . . . . . . Fastest Speed 50 | 50 160 160 160 180 180 220 220 220 200 200 180 180 176 180 180 180 150 Average Speed 188 | 151 160 160 191 180 189 220 243 244 213 200 180 180 178 180 180 191 216 Slowest Speed 2100 | 160 160 160 200 220 220 220 280 280 280 200 180 200 180 180 180 2100 2100 Overloaded Moves . | . . . . . . . . . . . . . . . . . . Propulsion Burnouts . | . . . . . . . . . . . . . . . . . . Robots Hopped . | . . . . . . . . . . . . . . . . . . Cave-ins Triggered 1 | . . . . . . . . . . . . . . . . . 1 Exploration Rate (%) 39 | 4 51 94 39 93 53 12 41 39 36 46 3 42 37 50 3 57 14 Regions Visited 17 Branch Regions 4 Pre-discovered Areas 3 | . . 1 . 1 1 . . . . . . . . . . . . Known Exits Taken 5 | . . . . . . . 1 . 1 . 1 . 1 . 1 . . Unknown Exits Taken 7 | 1 1 1 1 1 1 1 . . . . . . . . . . . Scrap Searched 2 | . . 1 . 1 . . . . . . . . . . . . . Spaces Dug 10 | . . . . . . . 4 . . . . . 6 . . . . Terrain Destroyed 172 | . . . . . . . 4 5 . . . . 25 6 . 82 50 Melee 10 | . . . . . . . 4 . . . . . 6 . . . . Projectile 6 | . . . . . . . . . . . . . 1 . . . 5 AOE 156 | . . . . . . . . 5 . . . . 18 6 . 82 45 Terrain Rammed . | . . . . . . . . . . . . . . . . . . Walls Destroyed . | . . . . . . . . . . . . . . . . . . Machines Disabled . | . . . . . . . . . . . . . . . . . . Actions | -11 -10 -10 -9 -9 -9 -8 -8 -8 -8 -8 -7 -7 -6 -6 -5 -5 -4 --------- Run | Scr Mat Min Mat Min Exi Min Mat Gar Mat Gar Fac Gar Fac Gar Fac Gar Fac Total 7198 | 46 235 663 405 627 216 20 489 169 471 315 132 170 1811 339 68 588 434 Wait 561 | 1 5 4 10 56 . 3 51 17 81 22 5 14 110 26 . 123 33 Move 5574 | 37 207 623 329 521 194 17 344 123 264 254 102 122 1455 239 63 379 301 Hop . | . . . . . . . . . . . . . . . . . . Pick Up 173 | 1 4 2 15 10 11 . 29 . 19 5 1 5 36 8 1 15 11 Fast Attach 54 | 6 1 1 8 . 1 . 2 . 1 . 1 1 14 3 2 5 8 Attach 105 | . . 1 4 3 . . 10 2 13 3 3 4 25 8 2 15 12 Detach 9 | . . . 2 . . . . . 2 . 1 1 2 1 . . . Swap 56 | . . 1 2 . 3 . 2 1 3 . . 2 29 2 . 4 7 Drop 104 | . . 1 13 . 7 . 12 . 17 . 1 3 36 2 . 1 11 Fire 527 | 1 18 30 22 37 . . 35 24 70 27 18 16 96 40 . 42 51 Melee 11 | . . . . . . . 4 . . . . . 7 . . . . Ram . | . . . . . . . . . . . . . . . . . . Kick . | . . . . . . . . . . . . . . . . . . Crush 2 | . . . . . . . . . 1 . . . 1 . . . . Escape Stasis 22 | . . . . . . . . 2 . 4 . 2 . 10 . 4 . Rewire . | . . . . . . . . . . . . . . . . . . Trap . | . . . . . . . . . . . . . . . . . . Miscellaneous . | . . . . . . . . . . . . . . . . . . Route ------- -11/Scrapyard -10/Materials (discovered 2 exits: *Mat / [*Min]) -10/Mines (discovered 2 exits: *Mat x2) -9/Materials (discovered 2 exits: *Mat / [*Min]) -9/Mines (discovered 3 exits: *Mat x2 / *Exi) -9/Exiles -8/Mines -8/Materials (discovered 3 exits: *Fac / [*Sto] / Gar) -8/Garrison -8/Materials (discovered 2 exits: [*Sto] / Gar) -8/Garrison (discovered 2 exits: *Fac x2) -7/Factory -7/Garrison -6/Factory (discovered 4 exits: *Fac x2 / [*Low] / Gar) -6/Garrison -5/Factory -5/Garrison (discovered 2 exits: *Fac x2) -4/Factory (discovered 2 exits: *Res / *Ext) History --------- Turn | Location | Event 2 | -11/Scrapyard | Discovered new exit (range 16) 71 | -11/Scrapyard | Entered Materials 196 | -10/Materials | Discovered new exit (range 13) 307 | -10/Materials | Build established: Mutant 347 | -10/Materials | Discovered new exit (range 15) 464 | -10/Materials | Entered Mines 484 | -10/Mines | A weapon hastily lodged in a ceiling crevice suddenly fell to the ground 681 | -10/Mines | Learned location of Storage (-8) 756 | -10/Mines | Discovered new exit (range 3) 1324 | -10/Mines | Discovered new exit (range 11) 1453 | -10/Mines | Assisted by bots powering up and referring to "LRC-V3" 1551 | -10/Mines | Entered Materials 1551 | -9/Materials | Accompanied by 3 allies 1551 | -9/Materials | Evolved 2 slots: Utility x2 1890 | -9/Materials | Discovered new exit (range 16) 2149 | -9/Materials | Discovered new exit (range 8) 2297 | -9/Materials | Entered Mines 2297 | -9/Mines | Accompanied by 1 ally 2308 | -9/Mines | Discovered new exit (range 11) 2336 | -9/Mines | Build established: Hauler-Mutant 2341 | -9/Mines | Learned location of Zion (-7) 2533 | -9/Mines | Learned Materials garrison access intel 2603 | -9/Mines | Assembled infested the area 2657 | -9/Mines | Lost 3 parts (1n2w) 2883 | -9/Mines | YI-UF0 nonchalantly dropped a Grenade Launcher on the ground 3370 | -9/Mines | Discovered new exit (range 15) 3408 | -9/Mines | Deemed a non-threat by the Exiles lab entrance 3409 | -9/Mines | Discovered new exit (range 5) 3418 | -9/Mines | Entered Exiles 3467 | -9/Exiles | Met 8R-AWN 3492 | -9/Exiles | Met EX-HEX 3610 | -9/Exiles | Met EX-DEC 3788 | -9/Exiles | Discovered new exit (range 10) 3806 | -9/Exiles | Entered Mines 3822 | -8/Mines | Discovered new exit (range 11) 3847 | -8/Mines | Entered Materials 3847 | -8/Materials | Evolved 2 slots: Utility x1, Weapon x1 3848 | -8/Materials | Loaded intel: 1 garrison access location 3977 | -8/Materials | Lost 4 parts (1p1n1u1w) 4572 | -8/Materials | Build established: Hauler-Tank 4613 | -8/Materials | Discovered new exit (range 15) 4852 | -8/Materials | Discovered new exit (range 5) 4901 | -8/Materials | Identified exit to Garrison 4903 | -8/Materials | Entered Garrison 4914 | -8/Garrison | Installed Relay Interface Framework 5155 | -8/Garrison | Destroyed 11 combat bots 5251 | -8/Garrison | Discovered new exit (range 11) 5286 | -8/Garrison | Identified exit to Materials 5286 | -8/Garrison | Entered Materials 5546 | -8/Materials | Discovered new exit (range 12) 6046 | -8/Materials | Garrison activated, responded to threat 6155 | -8/Materials | Identified exit to Garrison 6157 | -8/Materials | Entered Garrison 6280 | -8/Garrison | Triggered checkpoint 6417 | -8/Garrison | Discovered new exit (range 10) 6634 | -8/Garrison | Triggered checkpoint 6718 | -8/Garrison | Discovered new exit (range 10) 6750 | -8/Garrison | Expanded RIF knowledge: Coupler Efficiency 6764 | -8/Garrison | Entered Factory 6764 | -7/Factory | Evolved 2 slots: Propulsion x1, Utility x1 6924 | -7/Factory | Identified exit to Garrison 6963 | -7/Factory | Garrison activated, responded to threat 7004 | -7/Factory | Entered Garrison 7014 | -7/Garrison | Expanded RIF knowledge: Patrol Navigation 7107 | -7/Garrison | Triggered checkpoint 7167 | -7/Garrison | Lost 3 parts (2n1u) 7183 | -7/Garrison | Destroyed 10 combat bots 7269 | -7/Garrison | Discovered new exit (range 14) 7295 | -7/Garrison | Entered Factory 7295 | -6/Factory | Evolved 2 slots: Propulsion x1, Weapon x1 7602 | -6/Factory | Build established: Scavenger-Gunner 7986 | -6/Factory | Spotted B-75 Beast 8233 | -6/Factory | Discovered new exit (range 4) 8797 | -6/Factory | Discovered new exit (range 6) 9176 | -6/Factory | Build established: Scavenger-Tank 9869 | -6/Factory | Discovered new exit (range 15) 9911 | -6/Factory | Build established: Hauler-Tank 9918 | -6/Factory | Lost 6 parts (3n3w) 10095 | -6/Factory | First assault squad dispatched 10296 | -6/Factory | Garrison activated, responded to threat 10332 | -6/Factory | Lost 4 parts (1n1u2w) 10433 | -6/Factory | Identified exit to Garrison 10436 | -6/Factory | Entered Garrison 10438 | -6/Garrison | Lost 3 parts (2n1w) 10478 | -6/Garrison | Triggered checkpoint 10589 | -6/Garrison | Lost 3 parts (3u) 10665 | -6/Garrison | Triggered checkpoint 10826 | -6/Garrison | Lost 4 parts (2n1u1w) 11012 | -6/Garrison | Discovered new exit (range 9) 11040 | -6/Garrison | Expanded RIF knowledge: Threat Obfuscation 11050 | -6/Garrison | Identified exit to Factory 11053 | -6/Garrison | Entered Factory 11053 | -5/Factory | Evolved 2 slots: Utility x2 11164 | -5/Factory | Identified exit to Garrison 11173 | -5/Factory | Entered Garrison 11340 | -5/Garrison | Triggered checkpoint 11358 | -5/Garrison | Build established: Scavenger-Skirmisher 11646 | -5/Garrison | Discovered new exit (range 10) 11728 | -5/Garrison | Triggered checkpoint 11859 | -5/Garrison | Lost 13 parts (1p4n1u7w) 11930 | -5/Garrison | Phase Generator disabled 12162 | -5/Garrison | Discovered new exit (range 10) 12176 | -5/Garrison | Identified exit to Factory 12187 | -5/Garrison | Expanded RIF knowledge: Watcher Feeds 12200 | -5/Garrison | Entered Factory 12200 | -4/Factory | Evolved 2 slots: Power x1, Propulsion x1 12246 | -4/Factory | Discovered new exit (range 15) 12300 | -4/Factory | Identified exit to Extension 12394 | -4/Factory | Discovered new exit (range 6) 12417 | -4/Factory | Identified exit to Research 12597 | -4/Factory | Found Exp. Signal Interpreter 12600 | -4/Factory | Found Faulty Exp. Signal Interpreter 12603 | -4/Factory | Found Exp. Signal Interpreter 12710 | -4/Factory | Crushed by falling debris 12710 | -4/Factory | System corruption reached 10% 12750 | -4/Factory | Lost 11 parts (2p3n3u3w) 12941 | -4/Factory | Lost 6 parts (2n1u3w) 13106 | -4/Factory | Self-destructed Last Messages --------------- 12963_ R-10 Processor collects Lgt. Antimatter Reactor. 12964_ K-01 Serf collects debris. 12971_ System corrupted: Matter fused (-10). 12974_ K-01 Serf collects debris. 12986_ System corrupted: Matter fused (-6). 12988_ K-01 Serf collects debris. 13005_ >WJOIJP 4VKL 13101_ Penetrated by Slug. 13101_ Slug penetrates Wall. 13101_ Penetrated by Slug. 13105_ System corrupted: Component data lost. 13105_ Slug penetrates Wall. 13105_ Terminal disabled. Map ----- +----------------------------------------------------+ | ?????????????????????????????????????????????????? | | ?????????#+###########################???????????? | | ?????????# # ######??????? | | ?????????# """ """ """ # """ """"" ## #??? | | ?????????# """ """ """ # """ ""T"" ## """"" #??? | | ?????????# """ """ """ # """ ## """"" #??? | | ?????????# # ## """ #??? | | ?????????# ! """ """ """ ######+###+### #??? | | ?????????# """ """ """ ##### # """" #??? | | ?????????# """ """ """ + "% """" #??? | | ?????????# ##### " "" #??? | | ?????????# #???# ###"# ]#??? | | ?????????########+#+########## ## ## ### ####+ | | ????????####### ## # | | ??? * ## # | | ?? + "! / | | ???[ ## " # | | ??? ########## ## * ! # | | ??????????????############### ##### % ### | | ??????????????############### # # # #### | | ?????????????## # %####### | | ?????????????# # | | ??????????????# # | | ????????????????""T"" [[[ p ##### | | ??????????????# """" [[ # %% "#??? | | ??????????????# [ @ #%% "#### | | ??????????????############### " | | ??????????????????# ????# % " | | ??????????????????# ??# = # | | ??????????????????# # ! # | | ??????????????????# + ! + | | ??????????????????# # *% ! # | | ??????????????????# ??# # | | ??????????????????# ????# % #######+###? | | ??????????????????# ??????# ## #?### | | ??????????????????#????????# === ## #???? | | ??????????????###########??# |%= ## "T" !!##### | | ??????????????# ! #??# ![ ## """[ !%# | | ??????????????# """ #??# ########+## | | ??????????????# ==! """ #??# #?# [ =# | | ??????????????# ==! """ #??# ### # | | ??????????????# ==! #??# # | | ??????????????# #??# + | | ??????????????# ! #??# # | | ??????????????# #??# ###### # | | ??????????????#+###+######## # # # | | ??????????????# + ### ### | | ??????????????# ####### # #?# #?# | | ??????????????# #?????# # #?# #?##### | | ??????????????# #?????# + #?# #?????? | +----------------------------------------------------+ Best States ------------- Heat Dissipation 81 Energy Generation 31 Energy Capacity 380 Matter Stores 300 Matter Capacity 500 Sight Range 16 Robot Scan Range 13 Terrain Scan Density 10 Power Amplification 20 Base Temperature (-) 200 Armor Coverage 300 Phase Shifting 5 Evasion (%) 45 Targeting Accuracy 5 Recoil Reduction 4 Salvage Targeting 1 Relay Coupler Types 44 Relay Coupler Value 1 Item Schematics ----------------- Adv. Signal Interpreter | -6/Factory | Hacked Robot Schematics ------------------ None Fabricated ------------ Nothing Alien Tech Used ----------------- None Achievements -------------- None Challenges ------------ None Game ------ Seed RecoilHeatSink Manual? 0 Play Time 01:08:16 Cumulative 100.9 hours Start 2021.08.13 @ 05:07:26 End 2021.08.13 @ 06:14:16 Sessions 1 Manual Loads 0 Difficulty Rogue Special Mode None Game No. 171 Rogue 159 Adventurer 4 Explorer 8 Win Type - Total 7 Types 6/0/0/1/0/0/0/0/0 Lore% 61 Gallery% 79 Achievement% 62 Wizard Run 0 Options --------- ASCII 0 Keyboard 1 Movement Numpad Keybinds 0 Fullscreen 1 Font 18/SmallcapsGlow Map View 76x50 Tactical HUD 1 Map Filters NONE Filters NONE Steam 1 RUN: 5c06ec55-bb42-4378-9059-7710ca9209de